[Event "December 12 Late 2023"]
[Site "https://www.chess.com"]
[Date "2023.12.12"]
[Round "4"]
[White "Dragomirescu, Robin-Alexandru"]
[Black "Kadric, Denis"]
[Result "1-0"]
[Board "41"]
[TimeControl "180+1"]
[WhiteFideId "1213849"]
[BlackFideId "14403803"]
[WhiteElo "2557"]
[BlackElo "2811"]
[WhiteTeam "ROU"]
[BlackTeam "MNE"]
[WhiteClock "0:00:21"]
[BlackClock "0:00:01"]

1. b3 {[%clk 0:03:00]}  d6 {[%clk 0:02:52]} 2. Bb2 {[%clk 0:03:01]}  e5 {[%clk 0:02:52]} 3. e3 {[%clk 0:03:00]}  g6 {[%clk 0:02:52]} 4. d4 {[%clk 0:03:00]}  Bg7 {[%clk 0:02:53]} 5. dxe5 {[%clk 0:02:59]}  Nd7 {[%clk 0:02:54]} 6. Nf3 {[%clk 0:02:58]}  Nh6 {[%clk 0:02:54]} 7. Nc3 {[%clk 0:02:54]}  dxe5 {[%clk 0:02:53]} 8. e4 {[%clk 0:02:38]}  c6 {[%clk 0:02:50]} 9. a4 {[%clk 0:02:36]}  a5 {[%clk 0:02:47]} 10. Bc4 {[%clk 0:02:33]}  O-O {[%clk 0:02:46]} 11. O-O {[%clk 0:02:28]}  Re8 {[%clk 0:02:45]} 12. h3 {[%clk 0:02:25]}  Qf6 {[%clk 0:02:36]} 13. Bc1 {[%clk 0:02:24]}  Qe7 {[%clk 0:02:31]} 14. Bg5 {[%clk 0:02:13]}  Qf8 {[%clk 0:02:31]} 15. Qd2 {[%clk 0:02:09]}  Nb6 {[%clk 0:02:26]} 16. Be2 {[%clk 0:02:06]}  Be6 {[%clk 0:01:54]} 17. Rad1 {[%clk 0:02:05]}  f6 {[%clk 0:01:50]} 18. Be3 {[%clk 0:02:04]}  Nd7 {[%clk 0:01:51]} 19. Qd6 {[%clk 0:01:15]}  Nf7 {[%clk 0:01:45]} 20. Qxf8+ {[%clk 0:01:15]}  Bxf8 {[%clk 0:01:46]} 21. Nd2 {[%clk 0:01:12]}  Bb4 {[%clk 0:01:35]} 22. Na2 {[%clk 0:01:11]}  Bc5 {[%clk 0:01:34]} 23. Nc4 {[%clk 0:01:03]}  Bxe3 {[%clk 0:01:19]} 24. Nxe3 {[%clk 0:01:03]}  Nb6 {[%clk 0:01:18]} 25. Nc3 {[%clk 0:00:58]}  Kf8 {[%clk 0:01:18]} 26. Rd2 {[%clk 0:00:56]}  Red8 {[%clk 0:01:14]} 27. Rfd1 {[%clk 0:00:57]}  Rxd2 {[%clk 0:01:15]} 28. Rxd2 {[%clk 0:00:58]}  Ke7 {[%clk 0:01:15]} 29. Bg4 {[%clk 0:00:55]}  Nd8 {[%clk 0:01:06]} 30. Kf1 {[%clk 0:00:50]}  h5 {[%clk 0:01:05]} 31. Bxe6 {[%clk 0:00:49]}  Nxe6 {[%clk 0:01:06]} 32. f3 {[%clk 0:00:49]}  h4 {[%clk 0:00:46]} 33. Ne2 {[%clk 0:00:49]}  Nc8 {[%clk 0:00:38]} 34. Kf2 {[%clk 0:00:49]}  Nd6 {[%clk 0:00:36]} 35. Rd1 {[%clk 0:00:48]}  Nc5 {[%clk 0:00:34]} 36. Nc3 {[%clk 0:00:44]}  Ke6 {[%clk 0:00:34]} 37. Rd2 {[%clk 0:00:42]}  f5 {[%clk 0:00:28]} 38. exf5+ {[%clk 0:00:42]}  gxf5 {[%clk 0:00:29]} 39. Re2 {[%clk 0:00:42]}  b5 {[%clk 0:00:28]} 40. axb5 {[%clk 0:00:36]}  cxb5 {[%clk 0:00:29]} 41. Ned5 {[%clk 0:00:35]}  Rc8 {[%clk 0:00:20]} 42. Nf4+ {[%clk 0:00:31]}  Kd7 {[%clk 0:00:08]} 43. Rxe5 {[%clk 0:00:30]}  Nxb3 {[%clk 0:00:08]} 44. Nfd5 {[%clk 0:00:22]}  Nd4 {[%clk 0:00:05]} 45. Nb6+ {[%clk 0:00:20]}  Kc7 {[%clk 0:00:04]} 46. Nxc8 {[%clk 0:00:21]}  Kxc8 {[%clk 0:00:01]} 47. Rd5 {[%clk 0:00:21]} 1-0

[Event "December 12 Late 2023"]
[Site "https://www.chess.com"]
[Date "2023.12.12"]
[Round "4"]
[White "Keleberda, Tymur"]
[Black "Holt, Conrad"]
[Result "0-1"]
[Board "43"]
[TimeControl "180+1"]
[WhiteFideId "14174294"]
[BlackFideId "2034387"]
[WhiteElo "2550"]
[BlackElo "2801"]
[WhiteTeam "CAN"]
[BlackTeam "USA"]
[WhiteClock "0:00:06"]
[BlackClock "0:00:47"]

1. e4 {[%clk 0:03:00]}  e6 {[%clk 0:02:59]} 2. d4 {[%clk 0:03:00]}  d5 {[%clk 0:03:00]} 3. Nc3 {[%clk 0:03:01]}  Nf6 {[%clk 0:02:59]} 4. e5 {[%clk 0:03:01]}  Nfd7 {[%clk 0:03:00]} 5. f4 {[%clk 0:03:02]}  c5 {[%clk 0:03:00]} 6. Nf3 {[%clk 0:03:01]}  Nc6 {[%clk 0:03:00]} 7. Ne2 {[%clk 0:03:02]}  Qb6 {[%clk 0:02:56]} 8. c3 {[%clk 0:03:02]}  f6 {[%clk 0:02:55]} 9. g3 {[%clk 0:02:30]}  Be7 {[%clk 0:02:55]} 10. Bh3 {[%clk 0:02:28]}  cxd4 {[%clk 0:02:47]} 11. exf6 {[%clk 0:02:11]}  Nxf6 {[%clk 0:02:38]} 12. Nexd4 {[%clk 0:02:10]}  e5 {[%clk 0:02:27]} 13. fxe5 {[%clk 0:01:20]}  Bxh3 {[%clk 0:02:23]} 14. exf6 {[%clk 0:01:20]}  Bxf6 {[%clk 0:02:15]} 15. Qe2+ {[%clk 0:01:19]}  Kf7 {[%clk 0:02:15]} 16. Be3 {[%clk 0:01:02]}  Rhe8 {[%clk 0:02:06]} 17. O-O-O {[%clk 0:00:56]}  Na5 {[%clk 0:01:58]} 18. Qf2 {[%clk 0:00:48]}  Nc4 {[%clk 0:01:44]} 19. Bg5 {[%clk 0:00:48]}  Kg8 {[%clk 0:01:29]} 20. Rhe1 {[%clk 0:00:45]}  Re4 {[%clk 0:01:17]} 21. Bxf6 {[%clk 0:00:23]}  Qxf6 {[%clk 0:01:16]} 22. Rxe4 {[%clk 0:00:23]}  dxe4 {[%clk 0:01:15]} 23. Qe2 {[%clk 0:00:24]}  exf3 {[%clk 0:01:12]} 24. Qxc4+ {[%clk 0:00:23]}  Kh8 {[%clk 0:01:12]} 25. Qd5 {[%clk 0:00:20]}  f2 {[%clk 0:01:09]} 26. Nf3 {[%clk 0:00:20]}  f1=Q {[%clk 0:01:07]} 27. Rxf1 {[%clk 0:00:20]}  Bxf1 {[%clk 0:01:07]} 28. Ne5 {[%clk 0:00:19]}  Rf8 {[%clk 0:01:03]} 29. Nd7 {[%clk 0:00:19]}  Qh6+ {[%clk 0:01:02]} 30. Kc2 {[%clk 0:00:18]}  Rf2+ {[%clk 0:00:55]} 31. Kb3 {[%clk 0:00:19]}  Qd2 {[%clk 0:00:54]} 32. Qe5 {[%clk 0:00:06]}  Qxb2+ {[%clk 0:00:51]} 33. Ka4 {[%clk 0:00:06]}  b5+ {[%clk 0:00:47]} 34. Ka5 {[%clk 0:00:06]}  Qa3# {[%clk 0:00:47]} 0-1

[Event "December 12 Late 2023"]
[Site "https://www.chess.com"]
[Date "2023.12.12"]
[Round "4"]
[White "Silva, Kaua Marques"]
[Black "Troff, Kayden"]
[Result "1-0"]
[Board "45"]
[TimeControl "180+1"]
[WhiteFideId "22701168"]
[BlackFideId "2047896"]
[WhiteElo "2538"]
[BlackElo "2786"]
[WhiteTeam "BRA"]
[BlackTeam "USA"]
[WhiteClock "0:00:06"]
[BlackClock "0:00:03"]

1. e4 {[%clk 0:02:59]}  c5 {[%clk 0:02:59]} 2. Nf3 {[%clk 0:02:55]}  g6 {[%clk 0:02:57]} 3. c3 {[%clk 0:02:52]}  Bg7 {[%clk 0:02:57]} 4. d4 {[%clk 0:02:51]}  cxd4 {[%clk 0:02:58]} 5. cxd4 {[%clk 0:02:52]}  d5 {[%clk 0:02:58]} 6. Ne5 {[%clk 0:02:42]}  dxe4 {[%clk 0:02:31]} 7. Bb5+ {[%clk 0:02:40]}  Nd7 {[%clk 0:02:31]} 8. Nc3 {[%clk 0:02:31]}  Nf6 {[%clk 0:02:29]} 9. O-O {[%clk 0:02:26]}  O-O {[%clk 0:02:28]} 10. Bg5 {[%clk 0:02:16]}  a6 {[%clk 0:02:23]} 11. Ba4 {[%clk 0:02:11]}  h6 {[%clk 0:02:17]} 12. Be3 {[%clk 0:02:03]}  b5 {[%clk 0:01:55]} 13. Bb3 {[%clk 0:02:02]}  Bb7 {[%clk 0:01:54]} 14. Re1 {[%clk 0:01:54]}  e6 {[%clk 0:01:41]} 15. h3 {[%clk 0:01:51]}  Nxe5 {[%clk 0:01:31]} 16. dxe5 {[%clk 0:01:51]}  Nd7 {[%clk 0:01:31]} 17. Bd4 {[%clk 0:01:32]}  Nxe5 {[%clk 0:01:26]} 18. Bxe5 {[%clk 0:01:26]}  Bxe5 {[%clk 0:01:23]} 19. Nxe4 {[%clk 0:01:27]}  Bxe4 {[%clk 0:01:13]} 20. Rxe4 {[%clk 0:01:28]}  Bxb2 {[%clk 0:01:13]} 21. Rb1 {[%clk 0:01:24]}  Qxd1+ {[%clk 0:01:13]} 22. Rxd1 {[%clk 0:01:19]}  Rfd8 {[%clk 0:01:12]} 23. Rxd8+ {[%clk 0:01:17]}  Rxd8 {[%clk 0:01:11]} 24. Re2 {[%clk 0:00:49]}  Bc3 {[%clk 0:01:10]} 25. Rc2 {[%clk 0:00:45]}  b4 {[%clk 0:01:09]} 26. a3 {[%clk 0:00:44]}  a5 {[%clk 0:01:07]} 27. axb4 {[%clk 0:00:44]}  axb4 {[%clk 0:01:07]} 28. Ra2 {[%clk 0:00:42]}  Kg7 {[%clk 0:01:05]} 29. Ra7 {[%clk 0:00:42]}  Kf6 {[%clk 0:01:05]} 30. Rb7 {[%clk 0:00:41]}  Rd2 {[%clk 0:01:04]} 31. Ba4 {[%clk 0:00:36]}  Rd8 {[%clk 0:00:44]} 32. Kf1 {[%clk 0:00:31]}  g5 {[%clk 0:00:43]} 33. Ke2 {[%clk 0:00:32]}  h5 {[%clk 0:00:41]} 34. Ke3 {[%clk 0:00:30]}  Bd4+ {[%clk 0:00:31]} 35. Ke2 {[%clk 0:00:27]}  Bc3 {[%clk 0:00:28]} 36. Ke3 {[%clk 0:00:26]}  Ra8 {[%clk 0:00:28]} 37. Bd1 {[%clk 0:00:24]}  Ra3 {[%clk 0:00:28]} 38. Bxh5 {[%clk 0:00:23]}  b3 {[%clk 0:00:22]} 39. Rxf7+ {[%clk 0:00:17]}  Ke5 {[%clk 0:00:23]} 40. Rb7 {[%clk 0:00:17]}  b2 {[%clk 0:00:20]} 41. Kd3 {[%clk 0:00:17]}  Bd4+ {[%clk 0:00:18]} 42. Kc2 {[%clk 0:00:18]}  Rc3+ {[%clk 0:00:19]} 43. Kd2 {[%clk 0:00:09]}  Rc1 {[%clk 0:00:19]} 44. Bg6 {[%clk 0:00:10]}  Rf1 {[%clk 0:00:19]} 45. f3 {[%clk 0:00:09]}  Rf2+ {[%clk 0:00:19]} 46. Kd3 {[%clk 0:00:09]}  Kd5 {[%clk 0:00:13]} 47. Rb5+ {[%clk 0:00:05]}  Kc6 {[%clk 0:00:13]} 48. Be8+ {[%clk 0:00:04]}  Kd6 {[%clk 0:00:11]} 49. Kxd4 {[%clk 0:00:05]}  Rxg2 {[%clk 0:00:11]} 50. Rb6+ {[%clk 0:00:04]}  Ke7 {[%clk 0:00:11]} 51. Bg6 {[%clk 0:00:04]}  Kf6 {[%clk 0:00:11]} 52. Be4 {[%clk 0:00:04]}  Rh2 {[%clk 0:00:12]} 53. Ke3 {[%clk 0:00:04]}  Ke5 {[%clk 0:00:11]} 54. Rb5+ {[%clk 0:00:04]}  Kf6 {[%clk 0:00:11]} 55. Bd3 {[%clk 0:00:03]}  Rxh3 {[%clk 0:00:10]} 56. Rxb2 {[%clk 0:00:03]}  g4 {[%clk 0:00:11]} 57. Be4 {[%clk 0:00:03]}  gxf3 {[%clk 0:00:09]} 58. Bxf3 {[%clk 0:00:04]}  Rh8 {[%clk 0:00:09]} 59. Rb3 {[%clk 0:00:05]}  Rc8 {[%clk 0:00:09]} 60. Kf4 {[%clk 0:00:05]}  Rc5 {[%clk 0:00:09]} 61. Be4 {[%clk 0:00:06]}  Rg5 {[%clk 0:00:09]} 62. Rb6 {[%clk 0:00:06]}  Rh5 {[%clk 0:00:09]} 63. Ke3 {[%clk 0:00:06]}  Rh3+ {[%clk 0:00:10]} 64. Bf3 {[%clk 0:00:07]}  Rh4 {[%clk 0:00:10]} 65. Kf2 {[%clk 0:00:07]}  Ke5 {[%clk 0:00:09]} 66. Kg3 {[%clk 0:00:07]}  Ra4 {[%clk 0:00:08]} 67. Bg4 {[%clk 0:00:07]}  Ra3+ {[%clk 0:00:08]} 68. Kh4 {[%clk 0:00:08]}  Ra8 {[%clk 0:00:08]} 69. Rxe6+ {[%clk 0:00:07]}  Kd5 {[%clk 0:00:09]} 70. Re2 {[%clk 0:00:07]}  Rh8+ {[%clk 0:00:09]} 71. Kg3 {[%clk 0:00:07]}  Rf8 {[%clk 0:00:10]} 72. Bf3+ {[%clk 0:00:06]}  Kd4 {[%clk 0:00:11]} 73. Kf2 {[%clk 0:00:07]}  Rf7 {[%clk 0:00:10]} 74. Re8 {[%clk 0:00:07]}  Rf6 {[%clk 0:00:09]} 75. Ke2 {[%clk 0:00:07]}  Rf7 {[%clk 0:00:09]} 76. Re4+ {[%clk 0:00:06]}  Kc5 {[%clk 0:00:09]} 77. Ke3 {[%clk 0:00:04]}  Ra7 {[%clk 0:00:10]} 78. Re5+ {[%clk 0:00:04]}  Kd6 {[%clk 0:00:10]} 79. Rd5+ {[%clk 0:00:04]}  Ke6 {[%clk 0:00:10]} 80. Rd4 {[%clk 0:00:05]}  Ke5 {[%clk 0:00:10]} 81. Rb4 {[%clk 0:00:05]}  Ra3+ {[%clk 0:00:10]} 82. Kf2 {[%clk 0:00:05]}  Kf5 {[%clk 0:00:10]} 83. Rb5+ {[%clk 0:00:06]}  Kf4 {[%clk 0:00:10]} 84. Rb4+ {[%clk 0:00:06]}  Kf5 {[%clk 0:00:11]} 85. Kg3 {[%clk 0:00:07]}  Ke5 {[%clk 0:00:12]} 86. Re4+ {[%clk 0:00:07]}  Kf5 {[%clk 0:00:12]} 87. Re8 {[%clk 0:00:06]}  Ra4 {[%clk 0:00:11]} 88. Rb8 {[%clk 0:00:05]}  Ke5 {[%clk 0:00:10]} 89. Rb5+ {[%clk 0:00:06]}  Kf6 {[%clk 0:00:11]} 90. Bg4 {[%clk 0:00:05]}  Ra3+ {[%clk 0:00:11]} 91. Kf4 {[%clk 0:00:05]}  Ra4+ {[%clk 0:00:12]} 92. Kg3 {[%clk 0:00:05]}  Ra3+ {[%clk 0:00:13]} 93. Bf3 {[%clk 0:00:06]}  Ra4 {[%clk 0:00:13]} 94. Rc5 {[%clk 0:00:05]}  Rb4 {[%clk 0:00:13]} 95. Bg4 {[%clk 0:00:05]}  Rb3+ {[%clk 0:00:13]} 96. Kh4 {[%clk 0:00:05]}  Rb4 {[%clk 0:00:13]} 97. Rf5+ {[%clk 0:00:05]}  Ke7 {[%clk 0:00:13]} 98. Kg5 {[%clk 0:00:05]}  Kd6 {[%clk 0:00:13]} 99. Bf3 {[%clk 0:00:05]}  Rc4 {[%clk 0:00:12]} 100. Rd5+ {[%clk 0:00:05]}  Ke6 {[%clk 0:00:12]} 101. Ra5 {[%clk 0:00:05]}  Rb4 {[%clk 0:00:11]} 102. Bg4+ {[%clk 0:00:04]}  Kd6 {[%clk 0:00:11]} 103. Bf5 {[%clk 0:00:05]}  Rb8 {[%clk 0:00:11]} 104. Kf4 {[%clk 0:00:05]}  Re8 {[%clk 0:00:09]} 105. Be4 {[%clk 0:00:05]}  Rf8+ {[%clk 0:00:09]} 106. Ke3 {[%clk 0:00:05]}  Rb8 {[%clk 0:00:09]} 107. Rd5+ {[%clk 0:00:04]}  Ke6 {[%clk 0:00:09]} 108. Rc5 {[%clk 0:00:04]}  Rd8 {[%clk 0:00:07]} 109. Kf4 {[%clk 0:00:04]}  Kd6 {[%clk 0:00:07]} 110. Rc6+ {[%clk 0:00:04]}  Kd7 {[%clk 0:00:06]} 111. Ra6 {[%clk 0:00:05]}  Re8 {[%clk 0:00:06]} 112. Bc6+ {[%clk 0:00:05]}  Ke7 {[%clk 0:00:05]} 113. Bxe8 {[%clk 0:00:06]}  Kxe8 {[%clk 0:00:03]} 114. Ra7 {[%clk 0:00:06]} 1-0

[Event "December 12 Late 2023"]
[Site "https://www.chess.com"]
[Date "2023.12.12"]
[Round "4"]
[White "Roberson, Peter T"]
[Black "Matinian, Nikita"]
[Result "1-0"]
[Board "46"]
[TimeControl "180+1"]
[WhiteFideId "412384"]
[BlackFideId "24129100"]
[WhiteElo "2538"]
[BlackElo "2779"]
[WhiteTeam "ENG"]
[BlackTeam "FID"]
[WhiteClock "0:00:13"]
[BlackClock "0:00:39"]

1. Nc3 {[%clk 0:03:00]}  c5 {[%clk 0:02:52]} 2. e4 {[%clk 0:03:00]}  Nc6 {[%clk 0:02:51]} 3. Bb5 {[%clk 0:02:59]}  Nd4 {[%clk 0:02:51]} 4. Bc4 {[%clk 0:03:00]}  e6 {[%clk 0:02:50]} 5. Nge2 {[%clk 0:03:00]}  a6 {[%clk 0:02:50]} 6. d3 {[%clk 0:02:58]}  b5 {[%clk 0:02:49]} 7. Bb3 {[%clk 0:02:58]}  Nxb3 {[%clk 0:02:44]} 8. axb3 {[%clk 0:02:59]}  Bb7 {[%clk 0:02:45]} 9. O-O {[%clk 0:02:59]}  Nf6 {[%clk 0:02:41]} 10. Bg5 {[%clk 0:02:59]}  h6 {[%clk 0:02:40]} 11. Bh4 {[%clk 0:03:00]}  Be7 {[%clk 0:02:39]} 12. f4 {[%clk 0:03:00]}  g5 {[%clk 0:02:35]} 13. fxg5 {[%clk 0:02:56]}  Ng4 {[%clk 0:02:35]} 14. Qd2 {[%clk 0:02:51]}  Bxg5 {[%clk 0:02:29]} 15. Bxg5 {[%clk 0:02:50]}  Qxg5 {[%clk 0:02:30]} 16. Qf4 {[%clk 0:02:42]}  Qxf4 {[%clk 0:02:27]} 17. Nxf4 {[%clk 0:02:38]}  Ke7 {[%clk 0:02:17]} 18. h3 {[%clk 0:02:32]}  Ne5 {[%clk 0:02:17]} 19. Nh5 {[%clk 0:02:30]}  Rhg8 {[%clk 0:02:15]} 20. Rf2 {[%clk 0:02:26]}  Rg5 {[%clk 0:02:15]} 21. Nf6 {[%clk 0:02:20]}  b4 {[%clk 0:02:11]} 22. Na4 {[%clk 0:02:11]}  d6 {[%clk 0:02:11]} 23. Raf1 {[%clk 0:02:11]}  Rb8 {[%clk 0:01:59]} 24. Ng4 {[%clk 0:02:04]}  Rxg4 {[%clk 0:01:48]} 25. hxg4 {[%clk 0:02:02]}  Rg8 {[%clk 0:01:49]} 26. Nb6 {[%clk 0:01:58]}  Rg7 {[%clk 0:01:40]} 27. Nc4 {[%clk 0:01:50]}  Nxg4 {[%clk 0:01:40]} 28. Rxf7+ {[%clk 0:01:50]}  Rxf7 {[%clk 0:01:40]} 29. Rxf7+ {[%clk 0:01:50]}  Kxf7 {[%clk 0:01:40]} 30. Nxd6+ {[%clk 0:01:51]}  Ke7 {[%clk 0:01:36]} 31. Nxb7 {[%clk 0:01:52]}  Ne3 {[%clk 0:01:36]} 32. c3 {[%clk 0:01:16]}  Nd1 {[%clk 0:00:59]} 33. Nxc5 {[%clk 0:01:14]}  a5 {[%clk 0:00:59]} 34. cxb4 {[%clk 0:01:01]}  axb4 {[%clk 0:00:57]} 35. Na6 {[%clk 0:00:33]}  Nxb2 {[%clk 0:00:56]} 36. Nxb4 {[%clk 0:00:33]}  e5 {[%clk 0:00:49]} 37. Kf2 {[%clk 0:00:32]}  Kd6 {[%clk 0:00:49]} 38. Ke2 {[%clk 0:00:32]}  Kc5 {[%clk 0:00:49]} 39. Nc2 {[%clk 0:00:30]}  h5 {[%clk 0:00:45]} 40. g3 {[%clk 0:00:27]}  Kb5 {[%clk 0:00:44]} 41. Kd2 {[%clk 0:00:26]}  Kc5 {[%clk 0:00:43]} 42. Ne3 {[%clk 0:00:16]}  Kd4 {[%clk 0:00:43]} 43. Nf5+ {[%clk 0:00:13]}  Kc5 {[%clk 0:00:39]} 44. Kc2 {[%clk 0:00:13]} 1-0

[Event "December 12 Late 2023"]
[Site "https://www.chess.com"]
[Date "2023.12.12"]
[Round "4"]
[White "Postny, Evgeny"]
[Black "Sroczynski, Maciej"]
[Result "1-0"]
[Board "49"]
[TimeControl "180+1"]
[WhiteFideId "2804344"]
[BlackFideId "1121472"]
[WhiteElo "2763"]
[BlackElo "2534"]
[WhiteTeam "ISR"]
[BlackTeam "POL"]
[WhiteClock "0:00:09"]
[BlackClock "0:01:02"]

1. e4 {[%clk 0:03:00]}  c5 {[%clk 0:02:55]} 2. Nf3 {[%clk 0:03:00]}  d6 {[%clk 0:02:55]} 3. d4 {[%clk 0:03:01]}  cxd4 {[%clk 0:02:54]} 4. Nxd4 {[%clk 0:03:02]}  Nf6 {[%clk 0:02:55]} 5. Nc3 {[%clk 0:03:02]}  a6 {[%clk 0:02:55]} 6. Be3 {[%clk 0:03:00]}  e5 {[%clk 0:02:55]} 7. Nf3 {[%clk 0:02:59]}  Be7 {[%clk 0:02:54]} 8. Be2 {[%clk 0:02:58]}  h6 {[%clk 0:02:53]} 9. O-O {[%clk 0:02:58]}  Be6 {[%clk 0:02:53]} 10. Re1 {[%clk 0:02:57]}  Nbd7 {[%clk 0:02:52]} 11. Bf1 {[%clk 0:02:56]}  b5 {[%clk 0:02:52]} 12. a3 {[%clk 0:02:55]}  O-O {[%clk 0:02:51]} 13. h3 {[%clk 0:02:54]}  Rc8 {[%clk 0:02:51]} 14. Nd2 {[%clk 0:02:49]}  Nb6 {[%clk 0:02:47]} 15. Bd3 {[%clk 0:02:42]}  Qc7 {[%clk 0:02:29]} 16. Qf3 {[%clk 0:02:39]}  Rfd8 {[%clk 0:02:27]} 17. Rad1 {[%clk 0:02:37]}  Nc4 {[%clk 0:02:20]} 18. Nxc4 {[%clk 0:02:34]}  Bxc4 {[%clk 0:02:20]} 19. Qg3 {[%clk 0:02:23]}  Kh8 {[%clk 0:02:17]} 20. Kh1 {[%clk 0:02:13]}  Qc6 {[%clk 0:02:11]} 21. f3 {[%clk 0:02:03]}  a5 {[%clk 0:02:11]} 22. Rd2 {[%clk 0:01:50]}  b4 {[%clk 0:02:11]} 23. axb4 {[%clk 0:01:50]}  axb4 {[%clk 0:02:11]} 24. Nd1 {[%clk 0:01:50]}  Be6 {[%clk 0:02:07]} 25. b3 {[%clk 0:01:41]}  Nh5 {[%clk 0:02:02]} 26. Qf2 {[%clk 0:01:40]}  Bg5 {[%clk 0:02:00]} 27. Bxg5 {[%clk 0:01:35]}  hxg5 {[%clk 0:02:00]} 28. h4 {[%clk 0:01:28]}  g4 {[%clk 0:02:00]} 29. fxg4 {[%clk 0:01:25]}  Bxg4 {[%clk 0:01:59]} 30. Qxf7 {[%clk 0:01:18]}  Rf8 {[%clk 0:01:57]} 31. Qg6 {[%clk 0:01:16]}  Qd7 {[%clk 0:01:56]} 32. Ne3 {[%clk 0:01:10]}  Bf3 {[%clk 0:01:41]} 33. gxf3 {[%clk 0:00:58]}  Qh3+ {[%clk 0:01:41]} 34. Kg1 {[%clk 0:00:39]}  Rxf3 {[%clk 0:01:22]} 35. Qxh5+ {[%clk 0:00:38]}  Kg8 {[%clk 0:01:22]} 36. Nf5 {[%clk 0:00:15]}  Rf4 {[%clk 0:01:10]} 37. Rg2 {[%clk 0:00:10]}  Rc7 {[%clk 0:01:05]} 38. Qe8+ {[%clk 0:00:09]}  Kh7 {[%clk 0:01:05]} 39. Qh5+ {[%clk 0:00:09]}  Kg8 {[%clk 0:01:05]} 40. Bc4+ {[%clk 0:00:10]}  Rxc4 {[%clk 0:01:02]} 41. Rxg7+ {[%clk 0:00:08]}  Kf8 {[%clk 0:01:02]} 42. Qh8# {[%clk 0:00:09]} 1-0

[Event "December 12 Late 2023"]
[Site "https://www.chess.com"]
[Date "2023.12.12"]
[Round "4"]
[White "Rogov, Matfey"]
[Black "Adewumi, Tanitoluwa"]
[Result "0-1"]
[Board "52"]
[TimeControl "180+1"]
[WhiteFideId "44191308"]
[BlackFideId "30966396"]
[WhiteElo "2527"]
[BlackElo "2745"]
[WhiteTeam "RUS"]
[BlackTeam "USA"]
[WhiteClock "0:00:00"]
[BlackClock "0:00:05"]

1. e4 {[%clk 0:03:00]}  c5 {[%clk 0:03:00]} 2. Nc3 {[%clk 0:02:59]}  Nc6 {[%clk 0:02:59]} 3. f4 {[%clk 0:02:59]}  e6 {[%clk 0:02:56]} 4. Nf3 {[%clk 0:02:58]}  d5 {[%clk 0:02:56]} 5. Bb5 {[%clk 0:02:58]}  Nf6 {[%clk 0:02:49]} 6. Bxc6+ {[%clk 0:02:54]}  bxc6 {[%clk 0:02:50]} 7. d3 {[%clk 0:02:44]}  c4 {[%clk 0:02:47]} 8. e5 {[%clk 0:02:37]}  Nd7 {[%clk 0:02:46]} 9. dxc4 {[%clk 0:02:20]}  Ba6 {[%clk 0:02:29]} 10. O-O {[%clk 0:02:03]}  Bxc4 {[%clk 0:02:25]} 11. Re1 {[%clk 0:02:04]}  Bc5+ {[%clk 0:02:25]} 12. Kh1 {[%clk 0:02:02]}  Ba6 {[%clk 0:02:21]} 13. a3 {[%clk 0:01:49]}  Bf2 {[%clk 0:02:16]} 14. b4 {[%clk 0:01:29]}  Bxe1 {[%clk 0:02:11]} 15. Qxe1 {[%clk 0:01:30]}  c5 {[%clk 0:02:08]} 16. f5 {[%clk 0:00:52]}  Bb7 {[%clk 0:01:59]} 17. Qg3 {[%clk 0:00:48]}  g6 {[%clk 0:01:37]} 18. Nb5 {[%clk 0:00:38]}  O-O {[%clk 0:01:23]} 19. f6 {[%clk 0:00:36]}  Bc6 {[%clk 0:00:49]} 20. Qg5 {[%clk 0:00:15]}  d4 {[%clk 0:00:23]} 21. Qh6 {[%clk 0:00:14]}  Nxf6 {[%clk 0:00:23]} 22. Bg5 {[%clk 0:00:05]}  Ng4 {[%clk 0:00:21]} 23. Qh4 {[%clk 0:00:04]}  f6 {[%clk 0:00:11]} 24. exf6 {[%clk 0:00:03]}  Nxf6 {[%clk 0:00:10]} 25. Re1 {[%clk 0:00:04]}  Bxf3 {[%clk 0:00:08]} 26. gxf3 {[%clk 0:00:04]}  Qd5 {[%clk 0:00:09]} 27. Kg2 {[%clk 0:00:03]}  Nh5 {[%clk 0:00:08]} 28. Re4 {[%clk 0:00:02]}  cxb4 {[%clk 0:00:06]} 29. Nc7 {[%clk 0:00:03]}  Qc4 {[%clk 0:00:06]} 30. Nxe6 {[%clk 0:00:03]}  Qxc2+ {[%clk 0:00:06]} 31. Kh3 {[%clk 0:00:03]}  Rxf3+ {[%clk 0:00:06]} 32. Kg4 {[%clk 0:00:03]}  Qxe4+ {[%clk 0:00:04]} 33. Nf4 {[%clk 0:00:02]}  Rxf4+ {[%clk 0:00:04]} 34. Bxf4 {[%clk 0:00:01]}  Qxf4+ {[%clk 0:00:05]} 35. Kh3 {[%clk 0:00:00]}  Qf3+ {[%clk 0:00:05]} 0-1

[Event "December 12 Late 2023"]
[Site "https://www.chess.com"]
[Date "2023.12.12"]
[Round "4"]
[White "Osmak, Yuliia"]
[Black "Cardoso Cardoso, Jose Gabriel"]
[Result "1-0"]
[Board "55"]
[TimeControl "180+1"]
[WhiteFideId "14101602"]
[BlackFideId "4430492"]
[WhiteElo "2523"]
[BlackElo "2723"]
[WhiteTeam "UKR"]
[BlackTeam "COL"]
[WhiteClock "0:01:07"]
[BlackClock "0:01:26"]

1. e4 {[%clk 0:03:00]}  g6 {[%clk 0:02:56]} 2. d4 {[%clk 0:03:00]}  d6 {[%clk 0:02:55]} 3. f4 {[%clk 0:02:59]}  Bg7 {[%clk 0:02:45]} 4. Nc3 {[%clk 0:02:57]}  Nc6 {[%clk 0:02:44]} 5. Be3 {[%clk 0:02:55]}  e5 {[%clk 0:02:43]} 6. dxe5 {[%clk 0:02:40]}  dxe5 {[%clk 0:02:44]} 7. Qxd8+ {[%clk 0:02:40]}  Kxd8 {[%clk 0:02:40]} 8. O-O-O+ {[%clk 0:02:39]}  Bd7 {[%clk 0:02:39]} 9. Nd5 {[%clk 0:02:31]}  Kc8 {[%clk 0:02:17]} 10. Nf3 {[%clk 0:02:29]}  h6 {[%clk 0:02:09]} 11. Bc4 {[%clk 0:02:22]}  Be6 {[%clk 0:02:05]} 12. Rhf1 {[%clk 0:02:07]}  a6 {[%clk 0:02:04]} 13. Bb3 {[%clk 0:01:48]}  b5 {[%clk 0:01:53]} 14. fxe5 {[%clk 0:01:26]}  Nxe5 {[%clk 0:01:49]} 15. Bd4 {[%clk 0:01:25]}  f6 {[%clk 0:01:42]} 16. Nb6+ {[%clk 0:01:12]}  cxb6 {[%clk 0:01:39]} 17. Bxe6+ {[%clk 0:01:12]}  Kb8 {[%clk 0:01:32]} 18. Bxe5+ {[%clk 0:01:10]}  fxe5 {[%clk 0:01:31]} 19. Rd8+ {[%clk 0:01:10]}  Kb7 {[%clk 0:01:28]} 20. Bd5+ {[%clk 0:01:08]}  Kc7 {[%clk 0:01:28]} 21. Rxa8 {[%clk 0:01:08]}  Nf6 {[%clk 0:01:26]} 22. Ra7+ {[%clk 0:01:07]} 1-0